[Event "Early-Titled-Tuesday-Blitz-April-23-2024"]
[Site "Chess.com"]
[Date "2024.04.23"]
[Round "10"]
[White "MyDream003"]
[Black "rasmussvane"]
[Result "1-0"]
[WhiteElo "2834"]
[BlackElo "2948"]
[TimeControl "180+1"]
[EndTime "10:01:27 PDT"]
[Termination "MyDream003 won on time"]

1. e4 {[%clk 0:02:59]} 1... c6 {[%clk 0:02:59.3]} 2. d4 {[%clk 0:02:56.2]} 2...
d5 {[%clk 0:03:00.2]} 3. e5 {[%clk 0:02:56.7]} 3... Bf5 {[%clk 0:02:59.9]} 4.
Nf3 {[%clk 0:02:57.3]} 4... e6 {[%clk 0:02:58.3]} 5. Be2 {[%clk 0:02:57.8]} 5...
Ne7 {[%clk 0:02:58.8]} 6. O-O {[%clk 0:02:57.3]} 6... Ng6 {[%clk 0:02:59.2]} 7.
c3 {[%clk 0:02:55.6]} 7... Nd7 {[%clk 0:02:58.9]} 8. Re1 {[%clk 0:02:53.9]} 8...
h6 {[%clk 0:02:42.8]} 9. Bf1 {[%clk 0:02:52.1]} 9... Be7 {[%clk 0:02:33.4]} 10.
Na3 {[%clk 0:02:49.2]} 10... Nh4 {[%clk 0:02:20.7]} 11. Nxh4 {[%clk 0:02:48.6]}
11... Bxh4 {[%clk 0:02:21.6]} 12. Nc2 {[%clk 0:02:49.1]} 12... O-O {[%clk
0:02:09.2]} 13. Ne3 {[%clk 0:02:48.5]} 13... Bg6 {[%clk 0:02:07.2]} 14. g3
{[%clk 0:02:47]} 14... Be7 {[%clk 0:02:04.8]} 15. f4 {[%clk 0:02:46.7]} 15... c5
{[%clk 0:02:04.6]} 16. f5 {[%clk 0:02:39.2]} 16... Bxf5 {[%clk 0:01:59.3]} 17.
Nxf5 {[%clk 0:02:39.5]} 17... exf5 {[%clk 0:02:00.2]} 18. Bg2 {[%clk 0:02:40]}
18... Nb6 {[%clk 0:01:49.6]} 19. Qd3 {[%clk 0:02:28.9]} 19... cxd4 {[%clk
0:01:44.2]} 20. cxd4 {[%clk 0:02:28.9]} 20... Qd7 {[%clk 0:01:25.1]} 21. Rf1
{[%clk 0:02:25.2]} 21... Rac8 {[%clk 0:01:13.5]} 22. Rxf5 {[%clk 0:02:20.7]}
22... Rc6 {[%clk 0:01:13.6]} 23. Bd2 {[%clk 0:02:16.5]} 23... Nc4 {[%clk
0:01:10]} 24. Bc3 {[%clk 0:02:16.6]} 24... b5 {[%clk 0:01:06.8]} 25. Raf1 {[%clk
0:01:48.2]} 25... b4 {[%clk 0:01:04.5]} 26. Be1 {[%clk 0:01:48.4]} 26... Bg5
{[%clk 0:01:01]} 27. h4 {[%clk 0:01:39]} 27... Be7 {[%clk 0:00:21.3]} 28. Qf3
{[%clk 0:01:35.6]} 28... Qe8 {[%clk 0:00:13.1]} 29. Qxd5 {[%clk 0:01:33.9]}
29... Rc7 {[%clk 0:00:13.1]} 30. Qf3 {[%clk 0:01:30.6]} 30... Nxb2 {[%clk
0:00:10.3]} 31. Qb3 {[%clk 0:01:23.6]} 31... Nc4 {[%clk 0:00:09.6]} 32. Bd5
{[%clk 0:01:24]} 32... Qb5 {[%clk 0:00:02.8]} 33. Bxf7+ {[%clk 0:01:15]} 33...
Rxf7 {[%clk 0:00:03.4]} 34. Rxf7 {[%clk 0:01:15.9]} 34... Qd5 {[%clk 0:00:04.1]}
35. Qf3 {[%clk 0:00:58.1]} 35... Qxf3 {[%clk 0:00:03]} 36. R7xf3 {[%clk
0:00:54.5]} 36... Nb6 {[%clk 0:00:02.9]} 37. Rd3 {[%clk 0:00:41.8]} 37... Nd5
{[%clk 0:00:03.2]} 38. Kg2 {[%clk 0:00:40.6]} 38... a5 {[%clk 0:00:03.5]} 39.
Kf3 {[%clk 0:00:41.1]} 39... Kf7 {[%clk 0:00:03.5]} 40. Ke4+ {[%clk 0:00:39]}
40... Ke6 {[%clk 0:00:04.2]} 41. Bd2 {[%clk 0:00:30.5]} 41... Rc2 {[%clk
0:00:04.3]} 42. Rc1 {[%clk 0:00:28.2]} 42... Rxc1 {[%clk 0:00:03.3]} 43. Bxc1
{[%clk 0:00:29.1]} 43... Nc3+ {[%clk 0:00:04.2]} 44. Rxc3 {[%clk 0:00:29.5]}
44... bxc3 {[%clk 0:00:04.5]} 45. d5+ {[%clk 0:00:30.4]} 45... Kd7 {[%clk
0:00:05]} 46. Kd3 {[%clk 0:00:28.4]} 46... Bb4 {[%clk 0:00:05.2]} 47. a3 {[%clk
0:00:28.1]} 47... Bc5 {[%clk 0:00:05.7]} 48. Kxc3 {[%clk 0:00:28.2]} 48... Bf2
{[%clk 0:00:05.6]} 49. h5 {[%clk 0:00:29]} 49... Bxg3 {[%clk 0:00:05.5]} 50. Kd4
{[%clk 0:00:29.6]} 50... Bf2+ {[%clk 0:00:04.6]} 51. Ke4 {[%clk 0:00:30]} 51...
Bg3 {[%clk 0:00:04.4]} 52. Bf4 {[%clk 0:00:29.1]} 52... Bf2 {[%clk 0:00:03.6]}
53. e6+ {[%clk 0:00:29.5]} 53... Ke7 {[%clk 0:00:03.8]} 54. Be3 {[%clk
0:00:29.2]} 54... Bg3 {[%clk 0:00:01.7]} 55. Bc5+ {[%clk 0:00:29.1]} 55... Kf6
{[%clk 0:00:01.1]} 56. Bd4+ {[%clk 0:00:28.8]} 1-0

[Event "Early-Titled-Tuesday-Blitz-April-23-2024"]
[Site "Chess.com"]
[Date "2024.04.23"]
[Round "10"]
[White "DarZay"]
[Black "emeli_chess"]
[Result "1-0"]
[WhiteElo "2338"]
[BlackElo "2464"]
[TimeControl "180+1"]
[EndTime "10:01:28 PDT"]
[Termination "DarZay won on time"]

1. e4 {[%clk 0:03:00.9]} 1... c5 {[%clk 0:02:59]} 2. Nf3 {[%clk 0:03:00.6]} 2...
d6 {[%clk 0:02:59.2]} 3. d4 {[%clk 0:03:00]} 3... cxd4 {[%clk 0:02:59.5]} 4.
Nxd4 {[%clk 0:02:59.7]} 4... Nf6 {[%clk 0:02:59.8]} 5. Nc3 {[%clk 0:02:59.5]}
5... a6 {[%clk 0:03:00.2]} 6. a4 {[%clk 0:02:58.6]} 6... Nc6 {[%clk 0:02:59.5]}
7. Bc4 {[%clk 0:02:57.7]} 7... e6 {[%clk 0:02:58.5]} 8. O-O {[%clk 0:02:57.1]}
8... Be7 {[%clk 0:02:57.5]} 9. Be3 {[%clk 0:02:55.8]} 9... O-O {[%clk 0:02:56]}
10. f4 {[%clk 0:02:55.8]} 10... Qc7 {[%clk 0:02:55.3]} 11. Ba2 {[%clk 0:02:52]}
11... Na5 {[%clk 0:02:47.4]} 12. Qf3 {[%clk 0:02:38.9]} 12... Nc4 {[%clk
0:02:41.1]} 13. Bc1 {[%clk 0:02:36.5]} 13... b6 {[%clk 0:02:16.1]} 14. b3 {[%clk
0:02:35.9]} 14... Na5 {[%clk 0:02:09.2]} 15. b4 {[%clk 0:02:29.2]} 15... Nc6
{[%clk 0:01:58.9]} 16. Nxc6 {[%clk 0:02:22.3]} 16... Qxc6 {[%clk 0:01:58.9]} 17.
b5 {[%clk 0:02:19.4]} 17... axb5 {[%clk 0:01:58]} 18. axb5 {[%clk 0:02:19.1]}
18... Qc5+ {[%clk 0:01:56.6]} 19. Kh1 {[%clk 0:02:17.4]} 19... Bb7 {[%clk
0:01:54.8]} 20. Qd3 {[%clk 0:02:12.3]} 20... Ng4 {[%clk 0:01:46.5]} 21. Nd1
{[%clk 0:02:08]} 21... Bf6 {[%clk 0:01:22.3]} 22. c3 {[%clk 0:02:07.2]} 22...
Rfc8 {[%clk 0:01:07.8]} 23. h3 {[%clk 0:02:05.1]} 23... Nh6 {[%clk 0:01:04.9]}
24. Be3 {[%clk 0:02:02.7]} 24... Qc7 {[%clk 0:00:57.2]} 25. Bd2 {[%clk
0:01:41.3]} 25... Kh8 {[%clk 0:00:47.2]} 26. g4 {[%clk 0:01:30.5]} 26... Ng8
{[%clk 0:00:47]} 27. g5 {[%clk 0:01:30]} 27... Be7 {[%clk 0:00:46.1]} 28. c4
{[%clk 0:01:25.6]} 28... d5 {[%clk 0:00:45.9]} 29. exd5 {[%clk 0:01:23.6]} 29...
exd5 {[%clk 0:00:45.9]} 30. cxd5 {[%clk 0:01:23.8]} 30... Bc5 {[%clk 0:00:41.6]}
31. Nc3 {[%clk 0:01:21.2]} 31... Ne7 {[%clk 0:00:41.5]} 32. Rae1 {[%clk
0:01:17.5]} 32... Rxa2 {[%clk 0:00:37.9]} 33. Nxa2 {[%clk 0:01:16.6]} 33... Nxd5
{[%clk 0:00:38.1]} 34. Kh2 {[%clk 0:01:14.1]} 34... Rd8 {[%clk 0:00:35.7]} 35.
Qe2 {[%clk 0:01:04.2]} 35... Ne7 {[%clk 0:00:29.6]} 36. Bc3 {[%clk 0:01:00.1]}
36... Kg8 {[%clk 0:00:27.5]} 37. Qe5 {[%clk 0:00:58.3]} 37... Qxe5 {[%clk
0:00:26.1]} 38. Rxe5 {[%clk 0:00:57.9]} 38... Nd5 {[%clk 0:00:24.4]} 39. Rd1
{[%clk 0:00:52.3]} 39... Ra8 {[%clk 0:00:14.8]} 40. Nc1 {[%clk 0:00:43.9]} 40...
Nxc3 {[%clk 0:00:11.1]} 41. Rd7 {[%clk 0:00:42.2]} 41... Be4 {[%clk 0:00:08]}
42. Nb3 {[%clk 0:00:39.5]} 42... Bg6 {[%clk 0:00:06.5]} 43. Nxc5 {[%clk
0:00:36.8]} 43... bxc5 {[%clk 0:00:06.7]} 44. Rxc5 {[%clk 0:00:36.9]} 44... Ne4
{[%clk 0:00:06.5]} 45. Rcd5 {[%clk 0:00:35.5]} 45... h5 {[%clk 0:00:06.2]} 46.
Rd8+ {[%clk 0:00:34.3]} 46... Rxd8 {[%clk 0:00:06.5]} 47. Rxd8+ {[%clk
0:00:34.6]} 47... Kh7 {[%clk 0:00:07]} 48. b6 {[%clk 0:00:32.4]} 48... Nc5
{[%clk 0:00:07.2]} 49. Rb8 {[%clk 0:00:26.7]} 49... Be4 {[%clk 0:00:06.3]} 50.
Kg3 {[%clk 0:00:26.4]} 50... Kg6 {[%clk 0:00:06]} 51. Rc8 {[%clk 0:00:22.4]}
51... Nb7 {[%clk 0:00:05.8]} 52. Rc7 {[%clk 0:00:21.1]} 52... f6 {[%clk
0:00:04.7]} 53. h4 {[%clk 0:00:16.3]} 53... Bd5 {[%clk 0:00:03.6]} 54. f5+
{[%clk 0:00:14.1]} 54... Kxf5 {[%clk 0:00:03.5]} 55. Rxg7 {[%clk 0:00:14.4]} 1-0

[Event "Early-Titled-Tuesday-Blitz-April-23-2024"]
[Site "Chess.com"]
[Date "2024.04.23"]
[Round "10"]
[White "briesmas"]
[Black "Kushch_Nikolai"]
[Result "1/2-1/2"]
[WhiteElo "2190"]
[BlackElo "2368"]
[TimeControl "180+1"]
[EndTime "10:01:30 PDT"]
[Termination "Game drawn by repetition"]

1. e4 {[%clk 0:02:59.9]} 1... c5 {[%clk 0:02:59.4]} 2. Nf3 {[%clk 0:02:57.6]}
2... e6 {[%clk 0:02:59.5]} 3. d4 {[%clk 0:02:57.8]} 3... cxd4 {[%clk 0:02:59.6]}
4. Nxd4 {[%clk 0:02:58.7]} 4... a6 {[%clk 0:02:59.5]} 5. Nc3 {[%clk 0:02:59.2]}
5... Qc7 {[%clk 0:02:59.1]} 6. g3 {[%clk 0:02:56.1]} 6... b5 {[%clk 0:02:57.5]}
7. Bg2 {[%clk 0:02:44.9]} 7... Bb7 {[%clk 0:02:57.6]} 8. O-O {[%clk 0:02:43.9]}
8... Nf6 {[%clk 0:02:56.8]} 9. a3 {[%clk 0:02:32.6]} 9... d6 {[%clk 0:02:54.7]}
10. Be3 {[%clk 0:02:24.4]} 10... Be7 {[%clk 0:02:48.8]} 11. Qe2 {[%clk
0:02:20.1]} 11... O-O {[%clk 0:02:46.2]} 12. Rad1 {[%clk 0:02:19.4]} 12... Nbd7
{[%clk 0:02:45.6]} 13. f4 {[%clk 0:02:16.3]} 13... Rac8 {[%clk 0:02:42.8]} 14.
g4 {[%clk 0:02:14]} 14... Nc5 {[%clk 0:02:36.4]} 15. Bf2 {[%clk 0:01:59.9]}
15... d5 {[%clk 0:02:10.4]} 16. e5 {[%clk 0:01:58]} 16... Nfe4 {[%clk
0:02:09.3]} 17. Nxe4 {[%clk 0:01:56.6]} 17... Nxe4 {[%clk 0:02:08.6]} 18. Bxe4
{[%clk 0:01:51.9]} 18... dxe4 {[%clk 0:02:08.2]} 19. Be3 {[%clk 0:01:52.5]}
19... Qc4 {[%clk 0:02:03.5]} 20. c3 {[%clk 0:01:49.2]} 20... Bd5 {[%clk
0:01:52]} 21. Qxc4 {[%clk 0:01:44.5]} 21... Rxc4 {[%clk 0:01:46]} 22. f5 {[%clk
0:01:41.7]} 22... Rb8 {[%clk 0:01:42.9]} 23. g5 {[%clk 0:01:31.8]} 23... a5
{[%clk 0:01:32.2]} 24. f6 {[%clk 0:01:27]} 24... Bd8 {[%clk 0:01:24.1]} 25. Kf2
{[%clk 0:01:25.5]} 25... Bc7 {[%clk 0:01:23.9]} 26. Bf4 {[%clk 0:01:23.1]} 26...
g6 {[%clk 0:01:20.6]} 27. h4 {[%clk 0:01:19.8]} 27... h5 {[%clk 0:01:19.9]} 28.
gxh6 {[%clk 0:01:19.5]} 28... Kh7 {[%clk 0:01:18.7]} 29. h5 {[%clk 0:01:19.3]}
29... Rg8 {[%clk 0:01:13.7]} 30. Rg1 {[%clk 0:01:17.5]} 30... b4 {[%clk
0:01:05.2]} 31. axb4 {[%clk 0:01:10.5]} 31... axb4 {[%clk 0:01:04.5]} 32. hxg6+
{[%clk 0:01:11]} 32... fxg6 {[%clk 0:01:03.9]} 33. Rg3 {[%clk 0:00:55.6]} 33...
bxc3 {[%clk 0:01:03.3]} 34. bxc3 {[%clk 0:00:50.4]} 34... g5 {[%clk 0:00:53.7]}
35. Rxg5 {[%clk 0:00:36]} 35... Rxg5 {[%clk 0:00:52.8]} 36. Bxg5 {[%clk
0:00:36.9]} 36... Bxe5 {[%clk 0:00:51.1]} 37. f7 {[%clk 0:00:34.7]} 37... Bd6
{[%clk 0:00:49.9]} 38. Nxe6 {[%clk 0:00:33.3]} 38... Bxe6 {[%clk 0:00:43.9]} 39.
Rxd6 {[%clk 0:00:30.8]} 39... Bxf7 {[%clk 0:00:44]} 40. Rd7 {[%clk 0:00:27.4]}
40... Kg6 {[%clk 0:00:42.6]} 41. Bd2 {[%clk 0:00:10.7]} 41... Rc8 {[%clk
0:00:32.3]} 42. Rd6+ {[%clk 0:00:10.6]} 42... Kh7 {[%clk 0:00:31.3]} 43. Ke3
{[%clk 0:00:10.2]} 43... Re8 {[%clk 0:00:27.3]} 44. Rd7 {[%clk 0:00:10.6]} 44...
Kg6 {[%clk 0:00:26.7]} 45. Kd4 {[%clk 0:00:04.5]} 45... Be6 {[%clk 0:00:22.2]}
46. Rg7+ {[%clk 0:00:03.5]} 46... Kf6 {[%clk 0:00:22.2]} 47. Rg1 {[%clk
0:00:03.1]} 47... Bf5 {[%clk 0:00:21]} 48. Bg5+ {[%clk 0:00:02.9]} 48... Ke6
{[%clk 0:00:20.1]} 49. Ke3 {[%clk 0:00:02]} 49... Rc8 {[%clk 0:00:19.4]} 50. Rd1
{[%clk 0:00:01.4]} 50... Rxc3+ {[%clk 0:00:18.4]} 51. Kd2 {[%clk 0:00:01.1]}
51... Rd3+ {[%clk 0:00:18.2]} 52. Kc1 {[%clk 0:00:01.2]} 52... Rc3+ {[%clk
0:00:16.3]} 53. Kb2 {[%clk 0:00:01.3]} 53... Rd3 {[%clk 0:00:16.2]} 54. Rxd3
{[%clk 0:00:01.1]} 54... exd3 {[%clk 0:00:16.5]} 55. Kc3 {[%clk 0:00:02]} 55...
Kd5 {[%clk 0:00:16.6]} 56. Kd2 {[%clk 0:00:02.7]} 56... Bh7 {[%clk 0:00:16.7]}
57. Be3 {[%clk 0:00:02.9]} 57... Ke4 {[%clk 0:00:16.2]} 58. Bc5 {[%clk 0:00:03]}
58... Kd5 {[%clk 0:00:16.2]} 59. Bf8 {[%clk 0:00:03.9]} 59... Ke4 {[%clk
0:00:16.2]} 60. Bg7 {[%clk 0:00:04.8]} 60... Kd5 {[%clk 0:00:16.5]} 61. Bf8
{[%clk 0:00:05.5]} 61... Ke4 {[%clk 0:00:16.8]} 62. Bg7 {[%clk 0:00:06.4]} 62...
Kd5 {[%clk 0:00:17.2]} 63. Bf8 {[%clk 0:00:07.3]} 1/2-1/2

[Event "Early-Titled-Tuesday-Blitz-April-23-2024"]
[Site "Chess.com"]
[Date "2024.04.23"]
[Round "10"]
[White "PeshkaCh"]
[Black "FairChess_on_YouTube"]
[Result "0-1"]
[WhiteElo "2873"]
[BlackElo "3078"]
[TimeControl "180+1"]
[EndTime "10:01:31 PDT"]
[Termination "FairChess_on_YouTube won by checkmate"]

1. Nf3 {[%clk 0:03:00.9]} 1... b5 {[%clk 0:02:59.3]} 2. g3 {[%clk 0:02:46.5]}
2... Bb7 {[%clk 0:02:59.4]} 3. Bg2 {[%clk 0:02:47.1]} 3... Nf6 {[%clk
0:02:59.5]} 4. O-O {[%clk 0:02:47.7]} 4... e6 {[%clk 0:02:59.3]} 5. d4 {[%clk
0:02:48.3]} 5... c5 {[%clk 0:02:58.5]} 6. dxc5 {[%clk 0:02:47.7]} 6... Bxc5
{[%clk 0:02:58.1]} 7. b3 {[%clk 0:02:42.2]} 7... O-O {[%clk 0:02:57.2]} 8. Bb2
{[%clk 0:02:42.8]} 8... d5 {[%clk 0:02:53.2]} 9. Nbd2 {[%clk 0:02:42.1]} 9...
Nbd7 {[%clk 0:02:53.2]} 10. c4 {[%clk 0:02:39.2]} 10... dxc4 {[%clk 0:02:37.8]}
11. bxc4 {[%clk 0:02:40.1]} 11... b4 {[%clk 0:02:38.3]} 12. Nb3 {[%clk 0:02:36]}
12... Be7 {[%clk 0:02:38.3]} 13. a3 {[%clk 0:02:36.1]} 13... a5 {[%clk
0:02:33.8]} 14. axb4 {[%clk 0:02:35.4]} 14... Bxb4 {[%clk 0:02:31.2]} 15. Ba3
{[%clk 0:02:23.4]} 15... Qe7 {[%clk 0:02:11.2]} 16. Bxb4 {[%clk 0:01:38.6]}
16... Qxb4 {[%clk 0:02:12.1]} 17. Qd2 {[%clk 0:01:14.3]} 17... Qxb3 {[%clk
0:01:54.2]} 18. Rfb1 {[%clk 0:00:59.4]} 18... Nc5 {[%clk 0:01:47.8]} 19. Qc1
{[%clk 0:00:25.6]} 19... Be4 {[%clk 0:01:28.3]} 20. Nd2 {[%clk 0:00:22]} 20...
Qc2 {[%clk 0:01:25.1]} 21. Qxc2 {[%clk 0:00:16.3]} 21... Bxc2 {[%clk 0:01:26]}
22. Rb5 {[%clk 0:00:14.3]} 22... Rac8 {[%clk 0:01:21.6]} 23. Raxa5 {[%clk
0:00:12.5]} 23... Nce4 {[%clk 0:01:20.8]} 24. Nf3 {[%clk 0:00:10.7]} 24... Nc3
{[%clk 0:01:13.5]} 25. Rb2 {[%clk 0:00:10.4]} 25... Nxe2+ {[%clk 0:01:04.1]} 26.
Kf1 {[%clk 0:00:07.4]} 26... Bd3 {[%clk 0:01:02.6]} 27. Ne5 {[%clk 0:00:07.3]}
27... Nc1+ {[%clk 0:00:59.8]} 28. Ke1 {[%clk 0:00:06.5]} 28... Bxc4 {[%clk
0:00:58.8]} 29. Nxc4 {[%clk 0:00:02.2]} 29... Nd3+ {[%clk 0:00:56.7]} 30. Kd2
{[%clk 0:00:02]} 30... Nxb2 {[%clk 0:00:56.2]} 31. Nxb2 {[%clk 0:00:02.9]} 31...
Rfd8+ {[%clk 0:00:56.5]} 32. Nd3 {[%clk 0:00:03.1]} 32... Ng4 {[%clk 0:00:55.9]}
33. Ke2 {[%clk 0:00:01.8]} 33... Rc2+ {[%clk 0:00:55.8]} 34. Ke1 {[%clk
0:00:02.5]} 34... g6 {[%clk 0:00:54.5]} 35. Bf1 {[%clk 0:00:01.5]} 35... Nxh2
{[%clk 0:00:53.4]} 36. Be2 {[%clk 0:00:01.6]} 36... Nf3+ {[%clk 0:00:50.1]} 37.
Bxf3 {[%clk 0:00:02]} 37... Rxd3 {[%clk 0:00:50.7]} 38. Be4 {[%clk 0:00:02.7]}
38... Rc1+ {[%clk 0:00:50.9]} 39. Ke2 {[%clk 0:00:03.3]} 39... Rb3 {[%clk
0:00:50.7]} 40. Ra8+ {[%clk 0:00:03.5]} 40... Kg7 {[%clk 0:00:50.7]} 41. Ra7
{[%clk 0:00:04.4]} 41... Rcc3 {[%clk 0:00:50.2]} 42. Rd7 {[%clk 0:00:02.9]}
42... Rb2+ {[%clk 0:00:50.2]} 43. Kf1 {[%clk 0:00:02.8]} 43... Ra3 {[%clk
0:00:48.7]} 44. Bd3 {[%clk 0:00:01.8]} 44... Rd2 {[%clk 0:00:47.9]} 45. Bb5
{[%clk 0:00:01.7]} 45... Rxd7 {[%clk 0:00:47.8]} 46. Bxd7 {[%clk 0:00:02.6]}
46... h5 {[%clk 0:00:48.1]} 47. Bc6 {[%clk 0:00:03.2]} 47... h4 {[%clk 0:00:47]}
48. gxh4 {[%clk 0:00:03.5]} 48... Rh3 {[%clk 0:00:47.2]} 49. Kg2 {[%clk
0:00:04.1]} 49... Rxh4 {[%clk 0:00:47.7]} 50. Kg3 {[%clk 0:00:05]} 50... Rb4
{[%clk 0:00:48.1]} 51. Bg2 {[%clk 0:00:05.9]} 51... f5 {[%clk 0:00:48.4]} 52. f4
{[%clk 0:00:06.3]} 52... Kf6 {[%clk 0:00:49]} 53. Bf3 {[%clk 0:00:06.9]} 53...
g5 {[%clk 0:00:49]} 54. fxg5+ {[%clk 0:00:07.8]} 54... Kxg5 {[%clk 0:00:49.6]}
55. Kf2 {[%clk 0:00:08.7]} 55... Rf4 {[%clk 0:00:48.6]} 56. Kg3 {[%clk 0:00:09]}
56... Rxf3+ {[%clk 0:00:48.6]} 57. Kxf3 {[%clk 0:00:09.9]} 57... e5 {[%clk
0:00:49.3]} 58. Kg3 {[%clk 0:00:10.8]} 58... e4 {[%clk 0:00:49.8]} 59. Kf2
{[%clk 0:00:10.8]} 59... f4 {[%clk 0:00:50.3]} 60. Ke2 {[%clk 0:00:11.7]} 60...
Kg4 {[%clk 0:00:50.9]} 61. Kf2 {[%clk 0:00:12.6]} 61... e3+ {[%clk 0:00:51.5]}
62. Kf1 {[%clk 0:00:12.7]} 62... f3 {[%clk 0:00:50.6]} 63. Kg1 {[%clk
0:00:13.6]} 63... Kg3 {[%clk 0:00:49.7]} 64. Kf1 {[%clk 0:00:14.3]} 64... f2
{[%clk 0:00:49.3]} 65. Ke2 {[%clk 0:00:14.3]} 65... Kg2 {[%clk 0:00:49.9]} 66.
Kxe3 {[%clk 0:00:15.2]} 66... f1=Q {[%clk 0:00:50.5]} 67. Kd4 {[%clk 0:00:16.1]}
67... Qe2 {[%clk 0:00:50.6]} 68. Kc5 {[%clk 0:00:17]} 68... Qd3 {[%clk
0:00:50.9]} 69. Kb6 {[%clk 0:00:17.9]} 69... Qc4 {[%clk 0:00:51.3]} 70. Ka5
{[%clk 0:00:17.6]} 70... Qb3 {[%clk 0:00:51.4]} 71. Ka6 {[%clk 0:00:18.1]} 71...
Qb4 {[%clk 0:00:50.4]} 72. Ka7 {[%clk 0:00:18.2]} 72... Qb5 {[%clk 0:00:50.8]}
73. Ka8 {[%clk 0:00:18.2]} 73... Kh1 {[%clk 0:00:49.8]} 74. Ka7 {[%clk
0:00:18.4]} 74... Kh2 {[%clk 0:00:49.3]} 75. Ka8 {[%clk 0:00:19.3]} 75... Kh3
{[%clk 0:00:49.7]} 76. Ka7 {[%clk 0:00:20.2]} 76... Kh4 {[%clk 0:00:50.1]} 77.
Ka8 {[%clk 0:00:21.1]} 77... Kh5 {[%clk 0:00:50.6]} 78. Ka7 {[%clk 0:00:22]}
78... Kh6 {[%clk 0:00:51.1]} 79. Ka8 {[%clk 0:00:22.9]} 79... Kh7 {[%clk
0:00:51.6]} 80. Ka7 {[%clk 0:00:23.8]} 80... Kh8 {[%clk 0:00:52.1]} 81. Ka8
{[%clk 0:00:24.7]} 81... Kg8 {[%clk 0:00:52.6]} 82. Ka7 {[%clk 0:00:25.6]} 82...
Kf8 {[%clk 0:00:53.1]} 83. Ka8 {[%clk 0:00:26.5]} 83... Ke8 {[%clk 0:00:53.6]}
84. Ka7 {[%clk 0:00:27.4]} 84... Kd8 {[%clk 0:00:54]} 85. Ka8 {[%clk 0:00:28.3]}
85... Kc8 {[%clk 0:00:53.3]} 86. Ka7 {[%clk 0:00:29.2]} 86... Kc7 {[%clk
0:00:53.7]} 87. Ka8 {[%clk 0:00:30.1]} 87... Qa4# {[%clk 0:00:52.2]} 0-1

[Event "Early-Titled-Tuesday-Blitz-April-23-2024"]
[Site "Chess.com"]
[Date "2024.04.23"]
[Round "10"]
[White "Smiechu"]
[Black "rikchessmx"]
[Result "0-1"]
[WhiteElo "2445"]
[BlackElo "2284"]
[TimeControl "180+1"]
[EndTime "10:01:34 PDT"]
[Termination "rikchessmx won on time"]

1. e4 {[%clk 0:03:00.9]} 1... e5 {[%clk 0:03:00.1]} 2. Nf3 {[%clk 0:02:59.7]}
2... Nc6 {[%clk 0:03:01]} 3. d4 {[%clk 0:02:59.1]} 3... exd4 {[%clk 0:03:00.8]}
4. Nxd4 {[%clk 0:02:59.6]} 4... Bc5 {[%clk 0:03:00.4]} 5. Nb3 {[%clk 0:02:59.2]}
5... Bb6 {[%clk 0:03:00]} 6. Nc3 {[%clk 0:02:59.8]} 6... d6 {[%clk 0:02:59]} 7.
Qe2 {[%clk 0:03:00.3]} 7... Nf6 {[%clk 0:02:58.3]} 8. Be3 {[%clk 0:03:00.9]}
8... Be6 {[%clk 0:02:56.7]} 9. f3 {[%clk 0:02:59.2]} 9... Qd7 {[%clk 0:02:56.5]}
10. O-O-O {[%clk 0:02:58.9]} 10... O-O-O {[%clk 0:02:56.2]} 11. Bxb6 {[%clk
0:02:51.4]} 11... axb6 {[%clk 0:02:55.7]} 12. Nd4 {[%clk 0:02:51.5]} 12... Rhe8
{[%clk 0:02:51.1]} 13. Nxe6 {[%clk 0:02:45.3]} 13... Qxe6 {[%clk 0:02:47.3]} 14.
Qb5 {[%clk 0:02:12.3]} 14... Qe5 {[%clk 0:02:36]} 15. Nd5 {[%clk 0:02:03.6]}
15... Nxd5 {[%clk 0:02:20.8]} 16. Rxd5 {[%clk 0:02:00.2]} 16... Qf4+ {[%clk
0:02:20.2]} 17. Kb1 {[%clk 0:01:57.1]} 17... Ne5 {[%clk 0:02:14.1]} 18. Qa4
{[%clk 0:01:48.1]} 18... Kb8 {[%clk 0:02:03]} 19. Be2 {[%clk 0:01:44.7]} 19...
Qe3 {[%clk 0:01:57.2]} 20. Bd3 {[%clk 0:01:35.8]} 20... Qf2 {[%clk 0:01:51.1]}
21. Rd1 {[%clk 0:01:20.8]} 21... c6 {[%clk 0:01:44.6]} 22. Rd4 {[%clk
0:01:15.2]} 22... b5 {[%clk 0:01:42.8]} 23. Bxb5 {[%clk 0:01:14]} 23... cxb5
{[%clk 0:01:42.1]} 24. Qxb5 {[%clk 0:01:14.1]} 24... Nc6 {[%clk 0:01:41.7]} 25.
R4d3 {[%clk 0:01:09.5]} 25... Qc5 {[%clk 0:01:40.5]} 26. Qa4 {[%clk 0:01:07.3]}
26... Qa5 {[%clk 0:01:39.5]} 27. Qb3 {[%clk 0:01:03.1]} 27... Re7 {[%clk
0:01:31.7]} 28. Rd5 {[%clk 0:01:01.8]} 28... Qb4 {[%clk 0:01:27.6]} 29. Qd3
{[%clk 0:00:55.1]} 29... Re5 {[%clk 0:01:08.1]} 30. Rxd6 {[%clk 0:00:43.6]}
30... Qxd6 {[%clk 0:01:06.3]} 31. Qxd6+ {[%clk 0:00:43.4]} 31... Rxd6 {[%clk
0:01:06.6]} 32. Rxd6 {[%clk 0:00:43.7]} 32... Kc7 {[%clk 0:01:07.1]} 33. Rd2
{[%clk 0:00:41.8]} 33... Re7 {[%clk 0:01:06.7]} 34. c3 {[%clk 0:00:39.8]} 34...
Rd7 {[%clk 0:01:06.6]} 35. Re2 {[%clk 0:00:40]} 35... Rd1+ {[%clk 0:01:04.5]}
36. Kc2 {[%clk 0:00:40.1]} 36... Rh1 {[%clk 0:01:04.2]} 37. h3 {[%clk
0:00:40.4]} 37... Ra1 {[%clk 0:00:59.4]} 38. a3 {[%clk 0:00:39.4]} 38... Ne5
{[%clk 0:00:57.9]} 39. f4 {[%clk 0:00:35.9]} 39... Nc4 {[%clk 0:00:57.3]} 40.
Kb3 {[%clk 0:00:29.1]} 40... b5 {[%clk 0:00:56.9]} 41. e5 {[%clk 0:00:24.4]}
41... Rf1 {[%clk 0:00:51.5]} 42. a4 {[%clk 0:00:21.7]} 42... Rxf4 {[%clk
0:00:47.9]} 43. axb5 {[%clk 0:00:21.6]} 43... Kb6 {[%clk 0:00:47]} 44. g3 {[%clk
0:00:19.8]} 44... Na5+ {[%clk 0:00:44]} 45. Kc2 {[%clk 0:00:19.4]} 45... Rf3
{[%clk 0:00:44.3]} 46. e6 {[%clk 0:00:18.8]} 46... fxe6 {[%clk 0:00:43.8]} 47.
Rxe6+ {[%clk 0:00:19]} 47... Kxb5 {[%clk 0:00:44.1]} 48. Re5+ {[%clk 0:00:18.7]}
48... Kb6 {[%clk 0:00:42.9]} 49. Rg5 {[%clk 0:00:18.7]} 49... g6 {[%clk
0:00:41.9]} 50. b4 {[%clk 0:00:18.1]} 50... Nc4 {[%clk 0:00:40.5]} 51. Kb3
{[%clk 0:00:17.5]} 51... Nd6 {[%clk 0:00:39.6]} 52. Rg4 {[%clk 0:00:12.8]} 52...
Nb5 {[%clk 0:00:35.6]} 53. Rc4 {[%clk 0:00:08.6]} 53... Rxg3 {[%clk 0:00:35.3]}
54. h4 {[%clk 0:00:09.1]} 54... Rh3 {[%clk 0:00:34.8]} 55. Rc8 {[%clk
0:00:06.1]} 55... Rxh4 {[%clk 0:00:31.9]} 56. c4 {[%clk 0:00:06.5]} 56... Rh3+
{[%clk 0:00:30.3]} 57. Kb2 {[%clk 0:00:04.7]} 57... Nd4 {[%clk 0:00:26.9]} 58.
c5+ {[%clk 0:00:04.6]} 58... Kb5 {[%clk 0:00:27.2]} 59. Rb8+ {[%clk 0:00:05]}
59... Kc4 {[%clk 0:00:27.3]} 60. Kc1 {[%clk 0:00:04.2]} 60... Kc3 {[%clk
0:00:24.4]} 61. Kb1 {[%clk 0:00:03.1]} 61... Rh1+ {[%clk 0:00:22.5]} 62. Ka2
{[%clk 0:00:03.4]} 62... Nb3 {[%clk 0:00:21]} 0-1